fUSD/lending_fUSD_20250617
["ID","MTS","AMOUNT","RATE_DAILY","PERIOD"]
[366223456,1750132244342,-490.0,0.00016763,2]
[366223457,1750132244352,-490.0,0.00016763,2]
[366223458,1750132244361,-490.0,0.00016763,2]
[366223459,1750132244370,-490.0,0.00016763,2]
[366223460,1750132244381,-490.0,0.00016763,2]
[366223461,1750132244390,-563.20985034,0.00016763,2]
[366223462,1750132244400,-490.0,0.00016763,2]
[366223463,1750132244410,-490.0,0.00016763,2]
[366223464,1750132244420,-490.0,0.00016763,2]
[366223465,1750132244429,-300.05441048,0.00016763,2]
[366223466,1750132244440,-490.0,0.00016763,2]
[366223467,1750132244450,-490.0,0.00016763,2]
[366223468,1750132244459,-551.07805693,0.00016763,2]
[366223469,1750132244470,-490.0,0.00016763,2]
[366223470,1750132244479,-158.23,0.00016763,2]
[366223471,1750132244489,-490.0,0.00016763,2]
[366223472,1750132244499,-490.0,0.00016763,2]
[366223473,1750132244509,-485.0,0.00016763,2]
[366223474,1750132244519,-574.36527267,0.00016763,2]
[366223475,1750132244530,-470.0,0.00016763,2]
[366223476,1750132244540,-490.0,0.00016763,2]
[366223477,1750132244549,-490.0,0.00016763,2]
[366223478,1750132244559,-490.0,0.00016763,2]
[366223479,1750132244570,-490.0,0.00016763,2]
[366223480,1750132244580,-490.0,0.00016763,2]
[366223481,1750132244590,-490.0,0.00016763,2]
[366223482,1750132244600,-490.0,0.00016763,2]
[366223483,1750132244612,-490.0,0.00016763,2]
[366223484,1750132244622,-490.0,0.00016763,2]
[366223485,1750132244631,-490.0,0.00016763,2]
[366223486,1750132244640,-490.0,0.00016763,2]
[366223487,1750132244650,-490.0,0.00016763,2]
[366223488,1750132244659,-490.0,0.00016763,2]
[366223489,1750132244669,-490.0,0.00016763,2]
[366223490,1750132244679,-490.0,0.00016763,2]
[366223491,1750132244692,-490.0,0.00016763,2]
[366223492,1750132244702,-490.0,0.00016763,2]
[366223493,1750132244712,-659.99,0.00016763,2]
[366223494,1750132244721,-490.0,0.00016763,2]
[366223495,1750132244734,-490.0,0.00016763,2]
[366223496,1750132244743,-411.20787383,0.00016763,2]
[366223497,1750132244753,-417.22,0.00016763,2]
[366223498,1750132244767,-490.0,0.00016763,2]
[366223499,1750132244777,-1100.7,0.00016763,2]
[366223500,1750132244787,-490.0,0.00016763,2]
[366223501,1750132244797,-490.0,0.00016763,2]
[366223502,1750132244806,-490.0,0.00016763,2]
[366223503,1750132244816,-490.0,0.00016763,2]
[366223504,1750132244826,-490.0,0.00016763,2]
[366223505,1750132244836,-490.0,0.00016763,2]
[366223506,1750132244846,-7508.98,0.00016763,2]
[366223507,1750132244855,-2196.07,0.00016763,2]
[366223508,1750132244864,-490.0,0.00016763,2]
[366223509,1750132244875,-490.0,0.00016763,2]
[366223510,1750132244885,-790.01,0.00016763,2]
[366223511,1750132244894,-490.0,0.00016763,2]
[366223512,1750132244904,-490.0,0.00016763,2]
[366223513,1750132244914,-2620.43,0.00016763,2]
[366223514,1750132244923,-519.63,0.00016763,2]
[366223515,1750132244934,-490.0,0.00016763,2]
[366223516,1750132244944,-490.0,0.00016763,2]
[366223517,1750132244953,-1209.94,0.00016763,2]
[366223518,1750132244963,-490.0,0.00016763,2]
[366223519,1750132244973,-490.0,0.00016763,2]
[366223520,1750132244982,-490.0,0.00016763,2]
[366223521,1750132244992,-490.0,0.00016763,2]
[366223522,1750132245002,-237.07869228,0.00016763,2]
[366223523,1750132245012,-1081.76,0.00016763,2]
[366223524,1750132245022,-490.0,0.00016763,2]
[366223525,1750132245032,-490.0,0.00016763,2]
[366223526,1750132245041,-490.0,0.00016763,2]
[366223527,1750132245052,-988.24,0.00016763,2]
[366223528,1750132245063,-1008.7,0.00016763,2]
[366223529,1750132245073,-595.19998423,0.00016763,2]
[366223530,1750132245083,-2771.9,0.00016763,2]
[366223531,1750132245093,-586.11,0.00016763,2]
[366223532,1750132245103,-490.0,0.00016763,2]
[366223533,1750132245113,-216.47,0.00016763,2]
[366223534,1750132245122,-490.0,0.00016763,2]
[366223535,1750132245132,-490.0,0.00016763,2]
[366223536,1750132245142,-490.0,0.00016763,2]
[366223537,1750132245151,-490.0,0.00016763,2]
[366223538,1750132245160,-503.82396101,0.00016763,2]
[366223539,1750132245170,-538.84,0.00016763,2]
[366223540,1750132245180,-490.0,0.00016763,2]
[366223541,1750132245191,-490.0,0.00016763,2]
[366223542,1750132245200,-490.0,0.00016763,2]
[366223543,1750132245210,-1997.75,0.00016763,2]
[366223544,1750132245219,-490.0,0.00016763,2]
[366223545,1750132245228,-752.57,0.00016763,2]
[366223546,1750132245238,-490.0,0.00016763,2]
[366223547,1750132245248,-490.0,0.00016763,2]
[366223548,1750132245258,-490.0,0.00016763,2]
[366223549,1750132245267,-1652.4,0.00016763,2]
[366223550,1750132245277,-3159.58,0.00016763,2]
[366223551,1750132245286,-490.0,0.00016763,2]
[366223552,1750132245295,-490.0,0.00016763,2]
[366223553,1750132245305,-490.0,0.00016763,2]
[366223554,1750132245315,-490.0,0.00016763,2]
[366223555,1750132245325,-490.0,0.00016763,2]
[366223556,1750132245334,-774.72,0.00016763,2]
[366223557,1750132245344,-816.20417397,0.00016763,2]
[366223558,1750132245353,-490.0,0.00016763,2]
[366223560,1750132245363,-490.0,0.00016763,2]
[366223562,1750132245373,-490.0,0.00016763,2]
[366223564,1750132245381,-384.02,0.00016763,2]
[366223565,1750132245391,-490.0,0.00016763,2]
[366223566,1750132245400,-490.0,0.00016763,2]
[366223567,1750132245410,-575.35,0.00016763,2]
[366223568,1750132245419,-490.0,0.00016763,2]
[366223569,1750132245429,-490.0,0.00016763,2]
[366223570,1750132245439,-500.6837131,0.00016763,2]
[366223571,1750132245449,-490.0,0.00016763,2]
[366223572,1750132245459,-490.0,0.00016763,2]
[366223575,1750132245468,-490.0,0.00016763,2]
[366223578,1750132245478,-490.0,0.00016763,2]
[366223580,1750132245488,-2367.88,0.00016763,2]
[366223582,1750132245498,-4420.04,0.00016763,2]
[366223583,1750132245510,-490.0,0.00016763,2]
[366223584,1750132245520,-490.0,0.00016763,2]
[366223585,1750132245531,-490.0,0.00016763,2]
[366223586,1750132245541,-627.16,0.00016763,2]
[366223587,1750132245551,-490.0,0.00016763,2]
[366223588,1750132245561,-490.0,0.00016763,2]
[366223589,1750132245572,-490.0,0.00016763,2]
[366223590,1750132245582,-490.0,0.00016763,2]
[366223591,1750132245592,-490.0,0.00016763,2]
[366223592,1750132245602,-490.0,0.00016763,2]
[366223593,1750132245612,-490.0,0.00016763,2]
[366223594,1750132245622,-490.0,0.00016763,2]
[366223595,1750132245632,-490.0,0.00016763,2]
[366223596,1750132245642,-615.0,0.00016763,2]
[366223597,1750132245652,-490.0,0.00016763,2]
[366223598,1750132245662,-490.0,0.00016763,2]
[366223599,1750132245672,-490.0,0.00016763,2]
[366223600,1750132245684,-490.0,0.00016763,2]
[366223601,1750132245694,-547.13981287,0.00016763,2]
[366223602,1750132245704,-2411.81,0.00016763,2]
[366223603,1750132245714,-839.12,0.00016763,2]
[366223604,1750132245725,-490.0,0.00016763,2]
[366223605,1750132245736,-490.0,0.00016763,2]
[366223606,1750132245745,-490.0,0.00016763,2]
[366223607,1750132245756,-490.0,0.00016763,2]
[366223608,1750132245767,-490.0,0.00016763,2]
[366223609,1750132245777,-490.0,0.00016763,2]
[366223610,1750132245787,-490.0,0.00016763,2]
[366223611,1750132245797,-490.0,0.00016763,2]
[366223612,1750132245807,-490.0,0.00016763,2]
[366223613,1750132245817,-490.0,0.00016763,2]
[366223614,1750132245827,-490.0,0.00016763,2]
[366223615,1750132245836,-490.0,0.00016763,2]
[366223616,1750132245846,-761.92,0.00016763,2]
[366223617,1750132245856,-490.0,0.00016763,2]
[366223618,1750132245866,-490.0,0.00016763,2]
[366223619,1750132245876,-5157.93,0.00016763,2]
[366223620,1750132245886,-490.0,0.00016763,2]
[366223621,1750132245895,-490.0,0.00016763,2]
[366223622,1750132245905,-490.0,0.00016763,2]
[366223623,1750132245915,-490.0,0.00016763,2]
[366223624,1750132245925,-490.0,0.00016763,2]
[366223625,1750132245934,-237.935,0.00016763,2]
[366223626,1750132245944,-490.0,0.00016763,2]
[366223627,1750132245954,-626.79,0.00016763,2]
[366223628,1750132245963,-784.3,0.00016763,2]
[366223629,1750132245973,-490.0,0.00016763,2]
[366223630,1750132245984,-490.0,0.00016763,2]
[366223631,1750132245994,-490.0,0.00016763,2]
[366223632,1750132246003,-490.0,0.00016763,2]
[366223633,1750132246013,-490.0,0.00016763,2]
[366223634,1750132246022,-490.0,0.00016763,2]
[366223635,1750132246031,-680.87,0.00016763,2]
[366223636,1750132246041,-625.97178023,0.00016764,2]
[366223637,1750132246050,-191.27927065,0.00016764,2]
[366223638,1750132246060,-490.0,0.00016764,2]
[366223639,1750132246070,-490.0,0.00016764,2]
[366223640,1750132246079,-490.0,0.00016764,2]
[366223641,1750132246089,-490.0,0.00016764,2]
[366223642,1750132246377,-490.0,0.00016764,2]
[366223643,1750132246395,-569.85694142,0.00016764,2]
[366223644,1750132246406,-490.0,0.00016764,2]
[366223645,1750132246416,-450.94,0.00016764,2]
[366223646,1750132246426,-490.0,0.00016764,2]
[366223647,1750132246437,-490.0,0.00016764,2]
[366223648,1750132246447,-602.59518759,0.00016764,2]
[366223649,1750132246457,-490.0,0.00016764,2]
[366223650,1750132246467,-574.1,0.00016764,2]
[366223651,1750132246477,-490.0,0.00016764,2]
[366223652,1750132246488,-490.0,0.00016764,2]
[366223653,1750132246498,-490.0,0.00016764,2]
[366223654,1750132246508,-284.23210608,0.00016764,2]
[366223655,1750132246518,-490.0,0.00016764,2]
[366223656,1750132246528,-167.12,0.00016764,2]
[366223657,1750132246538,-490.0,0.00016764,2]
[366223658,1750132246549,-490.0,0.00016764,2]
[366223659,1750132246558,-490.0,0.00016764,2]
[366223660,1750132246568,-490.0,0.00016764,2]
[366223661,1750132246578,-585.92,0.00016764,2]
[366223662,1750132246588,-166.98304541,0.00016782,2]
[366223663,1750132246598,-946.0,0.00016784,2]
[366223664,1750132246609,-3333.0,0.00016784,2]
[366223665,1750132246619,-637.0,0.00016784,2]
[366223666,1750132246629,-802.0,0.00016784,2]
[366223667,1750132246639,-2003.0,0.00016784,2]
[366223668,1750132246649,-558.0,0.00016784,2]
[366223669,1750132246658,-928.0,0.00016784,2]
[366223670,1750132246669,-7113.0,0.00016784,2]
[366223671,1750132246680,-4091.0,0.00016784,2]
[366223672,1750132246693,-155.0,0.00016784,2]
[366223673,1750132246704,-884.0,0.00016784,2]
[366223674,1750132246714,-26720.19696425,0.00016794,2]
[366223675,1750132246723,-151.0,0.00016798,2]
[366223676,1750132246733,-151.0,0.00016798,2]
[366223677,1750132246743,-151.0,0.00016798,2]
[366223678,1750132246753,-151.0,0.00016798,2]
[366223679,1750132246764,-491.17734536,0.00016798,2]
[366223680,1750132246773,-491.67350484,0.00016798,2]
[366223681,1750132246783,-491.29829085,0.00016798,2]
[366223682,1750132246793,-151.0,0.00016798,2]
[366223683,1750132246803,-151.0,0.00016798,2]
[366223684,1750132246813,-490.0,0.00016798,2]
[366223685,1750132246822,-492.14327588,0.00016798,2]
[366223686,1750132246832,-491.36113836,0.00016798,2]
[366223687,1750132246841,-492.80919449,0.00016798,2]
[366223688,1750132246850,-490.61261551,0.00016798,2]
[366223689,1750132246861,-490.0,0.00016798,2]
[366223690,1750132246870,-490.0,0.00016798,2]
[366223691,1750132246880,-490.79671387,0.00016798,2]
[366223692,1750132246890,-151.0,0.00016798,2]
[366223693,1750132246900,-151.0,0.00016798,2]
[366223694,1750132246909,-490.60007123,0.00016798,2]
[366223695,1750132246919,-151.0,0.00016798,2]
[366223696,1750132246929,-151.0,0.00016798,2]
[366223697,1750132246940,-490.0,0.00016798,2]
[366223698,1750132246950,-490.0,0.00016798,2]
[366223699,1750132246960,-491.69080664,0.00016798,2]
[366223700,1750132246970,-491.31946396,0.00016798,2]
[366223701,1750132246979,-491.64049577,0.00016798,2]
[366223702,1750132246989,-490.82192507,0.00016798,2]
[366223703,1750132246999,-490.62795057,0.00016798,2]
[366223704,1750132247009,-491.3427641,0.00016798,2]
[366223705,1750132247019,-398.87489048,0.00016798,2]
[366223706,1750132247312,-92.05238608,0.00016798,2]
[366223707,1750132247322,-490.72061903,0.00016798,2]
[366223708,1750132247332,-389.68265321,0.00016798,2]
[366223709,1750132247344,-100.95290382,0.00016798,2]
[366223710,1750132247353,-264.79209618,0.00016798,2]
[366223711,1750132247365,-225.75639259,0.00016798,2]
[366223712,1750132247374,-490.0,0.00016798,2]
[366223713,1750132247384,-150.50572463,0.00016798,2]
[366223714,1750132247394,-491.85603455,0.00016798,2]
[366223715,1750132247405,-491.21767566,0.00016798,2]
[366223716,1750132247416,-490.9181877,0.00016798,2]
[366223717,1750132247426,-491.14132389,0.00016798,2]
[366223718,1750132247439,-491.55315869,0.00016798,2]
[366223719,1750132247450,-490.92884141,0.00016798,2]
[366223720,1750132247460,-490.64888261,0.00016798,2]
[366223721,1750132247471,-491.03864715,0.00016798,2]
[366223722,1750132247482,-490.70093975,0.00016798,2]
[366223723,1750132247493,-482.82501578,0.00016798,2]
[366223724,1750132247503,-462.54310823,0.00016798,2]
[366223725,1750132247513,-398.04997831,0.00016798,2]
[366223726,1750132247523,-630.20905655,0.00016798,2]
[366223727,1750132247533,-490.0,0.00016798,2]
[366223728,1750132247543,-490.0,0.00016798,2]
[366223729,1750132247554,-491.00491747,0.00016798,2]
[366223730,1750132247564,-490.0,0.00016798,2]
[366223731,1750132247573,-573.91,0.00016798,2]
[366223732,1750132247583,-490.0,0.00016798,2]
[366223733,1750132247593,-490.0,0.00016798,2]
[366223734,1750132247604,-490.0,0.00016798,2]
[366223735,1750132247613,-936.99,0.00016798,2]
[366223736,1750132247623,-165.104887,0.00016799,2]
[366223737,1750132247633,-165.104887,0.00016799,2]
[366223738,1750132247644,-165.104887,0.00016799,2]
[366223739,1750132247653,-165.104887,0.00016799,2]
[366223740,1750132247663,-165.104887,0.00016799,2]
[366223741,1750132247673,-165.104887,0.00016799,2]
[366223742,1750132247690,-151.0,0.00016799,2]
[366223743,1750132247702,-151.355389,0.00016799,2]
[366223744,1750132247712,-151.0,0.00016799,2]
[366223745,1750132247722,-151.0,0.00016799,2]
[366223746,1750132247733,-376.728929,0.00016799,2]
[366223747,1750132247743,-376.728929,0.00016799,2]
[366223748,1750132247753,-151.0,0.00016799,2]
[366223749,1750132247764,-151.0,0.00016799,2]
[366223750,1750132247774,-152.336977,0.00016799,2]
[366223751,1750132247784,-376.728929,0.00016799,2]
[366223752,1750132247794,-376.728929,0.00016799,2]
[366223753,1750132247803,-151.0,0.00016799,2]
[366223754,1750132247813,-151.0,0.00016799,2]
[366223755,1750132247822,-151.0,0.00016799,2]
[366223756,1750132247832,-151.0,0.00016799,2]
[366223757,1750132247841,-151.0,0.00016799,2]
[366223758,1750132247851,-151.0,0.00016799,2]
[366223759,1750132247861,-151.0,0.00016799,2]
[366223760,1750132247871,-151.0,0.00016799,2]
[366223761,1750132247880,-293.835293,0.00016799,2]
[366223762,1750132247890,-151.0,0.00016799,2]
[366223763,1750132247899,-151.0,0.00016799,2]
[366223764,1750132247909,-273.830972,0.00016799,2]
[366223765,1750132247918,-220.031656,0.00016799,2]
[366223766,1750132247928,-220.031656,0.00016799,2]
[366223767,1750132247939,-220.031656,0.00016799,2]
[366223768,1750132247949,-220.031656,0.00016799,2]
[366223769,1750132247959,-165.104887,0.000168,2]
[366223770,1750132247971,-165.104887,0.000168,2]
[366223771,1750132247980,-151.0,0.000168,2]
[366223772,1750132247990,-376.728929,0.000168,2]
[366223773,1750132248000,-376.728929,0.000168,2]
[366223774,1750132248010,-151.0,0.000168,2]
[366223775,1750132248020,-151.0,0.000168,2]
[366223776,1750132248031,-151.0,0.000168,2]
[366223777,1750132248041,-220.031656,0.000168,2]
[366223778,1750132248050,-220.031656,0.000168,2]
[366223779,1750132248060,-166.98304541,0.00016841,2]
[366223780,1750132248070,-500.0,0.00016853,2]
[366223781,1750132248080,-4504.97494395,0.00016854,2]
[366223782,1750132248089,-2516.41,0.00016862,2]
[366223783,1750132248099,-500.0,0.00016862,2]
[366223784,1750132248109,-26751.09117002,0.00016863,2]
[366223785,1750132248470,-167.86174077,0.00016663,2]
[366223786,1750132248480,-493.15104841,0.00016763,2]
[366223787,1750132248490,-1307.50052998,0.00016863,2]
[366223788,1750132248500,-731.57668084,0.000169,2]
[366223789,1750132248512,-1723.8992,0.000169,2]
[366223790,1750132248533,-522.538,0.000169,2]
[366223791,1750132248550,-1217.935,0.000169,2]
[366223792,1750132248931,-318.24944276,0.000168,2]
[366223793,1750132248944,-845.34055724,0.000168,2]
[366223794,1750132248954,-1604.05111916,0.000169,2]
[366223795,1750132248963,-189.46310026,0.000169,2]
[366223796,1750132248973,-237.0,0.000169,2]
[366223797,1750132248982,-258.93940183,0.000169,2]
[366223798,1750132248992,-376.0,0.000169,2]
[366223799,1750132249001,-166.98304541,0.000169,2]
[366223800,1750132249011,-769.0,0.000169,2]
[366223801,1750132249020,-151.0,0.00016926,2]
[366223802,1750132249029,-388.27382112,0.00016927,2]
[366223803,1750132249041,-25.20617888,0.00016927,2]
[366223804,1750132249051,-490.0,0.00016927,2]
[366223805,1750132249061,-221.31,0.00016927,2]
[366223806,1750132249070,-593.37,0.00016927,2]
[366223807,1750132249080,-490.0,0.00016927,2]
[366223808,1750132249089,-490.0,0.00016927,2]
[366223809,1750132249098,-200.23212216,0.00016927,2]
[366223810,1750132249109,-279.31787784,0.00016927,2]
[366223811,1750132249119,-316.57645867,0.00016927,2]
[366223812,1750132249128,-207.71688869,0.00016927,2]
[366223813,1750132249139,-363.34311131,0.00016927,2]
[366223814,1750132249149,-490.0,0.00016927,2]
[366223815,1750132249158,-490.0,0.00016927,2]
[366223816,1750132249167,-490.0,0.00016927,2]
[366223817,1750132249177,-490.0,0.00016927,2]
[366223818,1750132249187,-386.95608297,0.00016927,2]
[366223819,1750132249198,-165.69391703,0.00016927,2]
[366223820,1750132249208,-353.89932468,0.00016927,2]
[366223821,1750132249219,-136.10067532,0.00016927,2]
[366223822,1750132249228,-627.23950052,0.00016927,2]
[366223823,1750132249241,-137.48049948,0.00016927,2]
[366223824,1750132249250,-490.0,0.00016927,2]
[366223825,1750132249259,-185.64529046,0.00016927,2]
[366223826,1750132249270,-116.09021006,0.00016927,2]
[366223827,1750132249284,-373.90978994,0.00016927,2]
[366223828,1750132249294,-110.99021006,0.00016927,2]
[366223829,1750132249305,-519.26978994,0.00016927,2]
[366223830,1750132249315,-490.0,0.00016927,2]
[366223831,1750132249324,-259.43,0.00016927,2]
[366223832,1750132249333,-674.87,0.00016927,2]
[366223833,1750132249342,-374.69,0.00016927,2]
[366223834,1750132249351,-490.0,0.00016927,2]
[366223835,1750132249361,-490.0,0.00016927,2]
[366223836,1750132249370,-272.09832053,0.00016927,2]
[366223837,1750132272067,200.0,0.00014681,2]
[366223838,1750132657774,159.85,0.00015,2]
[366223839,1750132691712,202.0,0.00015256,2]
[366223840,1750132772395,268.2,0.00013699,2]
[366223843,1750133006745,352.7866059,0.000246,120]
[366223844,1750133051830,202.0,0.00014759,2]
[366223845,1750133052085,202.0,0.00015273,2]
[366223846,1750133108175,153.4556042,0.00015288,2]
[366223847,1750133109534,150.0,0.00015288,2]
[366223848,1750133109728,150.0,0.00015288,2]
[366223849,1750133109976,150.0,0.00015288,2]
[366223850,1750133110112,150.0,0.00015312,2]
[366223851,1750133110150,150.0,0.00015337,2]
[366223852,1750133110204,150.0,0.00015362,2]
[366223853,1750133110237,150.0,0.00015386,2]
[366223854,1750133110288,150.0,0.00015411,2]
[366223855,1750133110364,150.0,0.00015435,2]
[366223856,1750133110437,150.0,0.0001546,2]
[366223857,1750133110488,150.0,0.00015485,2]
[366223858,1750133116396,168.41340903,0.00015288,2]
[366223859,1750133119056,150.0,0.00015288,2]
[366223860,1750133121509,150.0,0.00015288,2]
[366223861,1750133121657,150.0,0.00015288,2]
[366223862,1750133121728,150.0,0.00015288,2]
[366223863,1750133121865,150.0,0.00015418,2]
[366223864,1750133128280,150.0,0.00015288,2]
[366223865,1750133128357,150.0,0.00015288,2]
[366223866,1750133128496,150.00000001,0.00015288,2]
[366223867,1750133265109,154.76,0.00015231,2]
[366223869,1750133426454,202.0,0.00014787,2]
[366223870,1750133426758,202.0,0.00015313,2]
[366223872,1750133432127,-152.274791,0.00015499,2]
[366223873,1750133432138,-162.395255,0.00015499,2]
[366223874,1750133432148,-250.0,0.00015504,2]
[366223875,1750133432158,-150.0,0.00015509,2]
[366223876,1750133432168,-150.0,0.00015534,2]
[366223877,1750133432183,-150.0,0.00015549,2]
[366223878,1750133432192,-8.91764177,0.00015558,2]
[366223879,1750133432214,-141.08235823,0.00015558,2]
[366223880,1750133432224,-150.0,0.00015583,2]
[366223881,1750133432233,-150.0,0.00015608,2]
[366223882,1750133432244,-150.0,0.00015632,2]
[366223883,1750133432255,-300.0,0.00015646,2]
[366223884,1750133432264,-1200.0,0.00015646,2]
[366223885,1750133432274,-3.03249361,0.00015647,2]
[366223886,1750133432300,-2544.1193752,0.00015647,2]
[366223887,1750133432317,-2597.79205117,0.00015647,2]
[366223943,1750133437913,-1343.58948982,0.00015647,2]
[366223944,1750133437925,-679.41340858,0.00015647,2]
[366223956,1750133440116,-14483.31642329,0.00015647,2]
[366223957,1750133440127,-150.0,0.00015657,2]
[366223958,1750133440137,-2230.57,0.00015674,2]
[366223959,1750133440147,-150.0,0.0001568,2]
[366223960,1750133440157,-150.0,0.00015682,2]
[366223961,1750133440167,-12808.93,0.00015682,2]
[366223962,1750133440177,-150.0,0.00015706,2]
[366223963,1750133440187,-666.0,0.00015709,2]
[366223964,1750133440197,-150.0,0.00015731,2]
[366223965,1750133440212,-1581.35,0.00015733,2]
[366223966,1750133440222,-150.0,0.00015755,2]
[366223967,1750133440232,-150.0,0.0001578,2]
[366223968,1750133440242,-1000.0,0.00015783,2]
[366223969,1750133440252,-150.0,0.00015805,2]
[366223970,1750133440261,-150.0,0.0001581,2]
[366223971,1750133440271,-4489.08029248,0.00015827,2]
[366223973,1750133440469,-150.0,0.00015829,2]
[366223974,1750133440479,-1237.38,0.00015832,2]
[366223975,1750133440490,-2026.88,0.00015832,2]
[366223976,1750133440499,-170.43,0.00015836,2]
[366223977,1750133440510,-202.0,0.00015839,3]
[366223978,1750133440520,-160.36,0.0001584,2]
[366223979,1750133440530,-150.0,0.00015854,2]
[366223980,1750133440540,-150.0,0.00015854,2]
[366223981,1750133440550,-150.0,0.00015878,2]
[366223982,1750133440561,-150.0,0.00015903,2]
[366223983,1750133440571,-150.0,0.00015928,2]
[366223984,1750133440583,-289.92671505,0.00015939,2]
[366223985,1750133440593,-150.0,0.00015941,2]
[366223986,1750133440603,-150.0,0.00015952,2]
[366223987,1750133440613,-700.05384328,0.00015964,2]
[366223988,1750133440624,-150.0,0.00015977,2]
[366223989,1750133440634,-326.93,0.00015978,2]
[366223990,1750133440643,-150.0,0.00016002,2]
[366223991,1750133440653,-150.0,0.00016026,2]
[366223992,1750133440663,-151.0,0.0001603,2]
[366223993,1750133440674,-207.4,0.0001603,2]
[366223994,1750133440683,-150.0,0.00016051,2]
[366223995,1750133440694,-461.43,0.00016055,2]
[366223996,1750133440703,-150.0,0.00016072,2]
[366223997,1750133440714,-150.0,0.00016075,2]
[366223998,1750133440723,-150.0,0.000161,2]
[366223999,1750133440734,-150.0,0.00016125,2]
[366224000,1750133440744,-150.0,0.00016137,2]
[366224001,1750133440755,-150.0,0.00016149,2]
[366224002,1750133440765,-500.0,0.00016164,2]
[366224003,1750133440776,-150.0,0.00016174,2]
[366224004,1750133440786,-150.0,0.00016199,2]
[366224005,1750133440797,-150.0,0.00016202,2]
[366224006,1750133440806,-150.0,0.00016223,2]
[366224007,1750133440816,-150.0,0.00016248,2]
[366224008,1750133440826,-150.0,0.00016272,2]
[366224009,1750133440836,-150.0,0.00016297,2]
[366224010,1750133440847,-150.0,0.00016322,2]
[366224011,1750133440857,-150.0,0.00016333,2]
[366224012,1750133440867,-150.0,0.00016346,2]
[366224013,1750133440878,-202.0,0.00016364,4]
[366224014,1750133440888,-150.0,0.00016371,2]
[366224015,1750133440898,-150.0,0.00016395,2]
[366224016,1750133440909,-150.0,0.0001642,2]
[366224017,1750133440919,-150.0,0.0001642,2]
[366224018,1750133440929,-150.0,0.00016445,2]
[366224019,1750133440939,-150.0,0.00016464,2]
[366224020,1750133440949,-150.0,0.00016469,2]
[366224021,1750133440960,-1618.0,0.0001649,2]
[366224022,1750133440970,-150.0,0.00016494,2]
[366224023,1750133440980,-952.22,0.000165,2]
[366224024,1750133440991,-150.0,0.00016519,2]
[366224025,1750133441001,-150.0,0.00016543,2]
[366224026,1750133441012,-150.0,0.00016568,2]
[366224027,1750133441022,-150.0,0.00016592,2]
[366224028,1750133441032,-150.0,0.00016594,2]
[366224029,1750133441042,-1006.0,0.000166,2]
[366224030,1750133441051,-150.0,0.00016617,2]
[366224031,1750133441061,-829.662988,0.00016622,2]
[366224032,1750133441072,-150.0,0.00016642,2]
[366224033,1750133441082,-700.05384328,0.00016647,2]
[366224034,1750133441092,-214.35,0.00016647,2]
[366224035,1750133441102,-1618.0,0.0001666,2]